Cogmind - Beta 14 @@@ ROGUE MODE // 2024.12.19 @ 21:33:24 Player: naththebg Result: Destroyed by Combat Programmer with EMDS Performance ------------- Evolutions (9) 4500 Regions Visited (21) 4200 Robots Destroyed (323) 1615 Value Destroyed (15532) 15532 Prototype IDs (74) 1480 Alien Tech Used (0) 0 Bonus (7203) 7203 TOTAL SCORE: 34530 Bonus ------- High Alert Combat Kills 3287 Follower Combat Kills 1331 Aligned with FarCom 300 Built Enhanced Grunts 300 Met R17 at Cetus 500 Met R17 at Research 2000 Friendly Fire -515 Cogmind --------- Core Integrity 0/1600 Matter 285/300 Energy 79/100 System Corruption 29% Temperature Cool (0) Movement Core (50) Location -1/Command Parts ------- > --- POWER (3) -------- (None) > --- PROPULSION (6) --- (None) > --- UTILITY (10) ----- Advanced Heat Sink > --- WEAPON (6) ------- (None) > --- INVENTORY (5) ---- Micro Antimatter Reactor Light Quantum Reactor Gamma Rifle Peak State ------------ > --- POWER ------------ Quantum Reactor Quantum Reactor Quantum Reactor > --- PROPULSION ------- Advanced Myomer Leg Enhanced Biometal Leg Enhanced Biometal Leg Enhanced Biometal Leg Centrium Leg Centrium Leg > --- UTILITY ---------- Advanced Cooling System Coolant Network Large Storage Unit Superbattery Advanced Particle Charger Advanced Weapon Cycler Centrium Heavy Armor Plating Advanced Force Field > --- WEAPON ----------- Cooled Particle Cannon Cooled Phase Cannon Cooled Phase Cannon Nova Cannon Enhanced Nova Cannon Enhanced Nova Cannon > --- INVENTORY -------- Quantum Reactor Quantum Reactor Biometal Leg Centrium Leg Advanced Cooling System Advanced Targeting Computer Advanced Particle Charger Advanced Weapon Cycler Advanced Reaction Control System Centrium Medium Armor Plating Experimental Thermal Shield Advanced Component Analysis Suite Nova Cannon Nova Cannon Nova Cannon [Rating: 214] Favorites ----------- Power Quantum Reactor Engine Angular Momentum Engine Power Core Cooled Fission Core Reactor Quantum Reactor Propulsion Improved Aluminum Leg Treads Biometal Medium Treads Leg Improved Aluminum Leg Wheel High-density Centrium Wheel Hover Unit Improved Antigrav System Utility Advanced Heat Sink Device Advanced Heat Sink Storage Large Storage Unit Processor Advanced Targeting Computer Hackware Hacking Suite Protection Centrium Medium Armor Plating Weapon Cooled Particle Cannon Energy Gun Advanced Beam Rifle Energy Cannon Cooled Particle Cannon Ballistic Gun KE Penetrator Special Weapon Plasma Cutter Build | -11 -10 -10 -9 -9 -9 -8 -8 -8 -8 -8 -6 -5 -4 -4 -4 -4 -4 -3 -2 -1 -1 ------- Run | Yrd Mat Min Mat Min Exi Min Mat Sto Rec Scr Fac Fac Fac Ext Cet Arc Hub Res Res Acc Com Slots Evolved 18 | . . . 2 . . . 2 . . . 4 2 2 . . . . 2 2 2 . Power 2 | . . . . . . . . . . . . 1 . . . . . . . 1 . Propulsion 4 | . . . . . . . 1 . . . 1 1 . . . . . . 1 . . Utility 8 | . . . 1 . . . 1 . . . 1 . 1 . . . . 2 1 1 . Weapon 4 | . . . 1 . . . . . . . 2 . 1 . . . . . . . . Parts Attached 325 | 6 2 1 10 5 . 19 26 24 2 4 38 22 5 12 13 1 13 43 23 26 30 Power 51 | 1 . . . 2 . 5 5 2 1 1 1 6 . 2 2 . . 5 5 11 2 Engine 13 | 1 . . . 1 . 1 5 1 1 1 1 . . . . . . 1 . . . Core 14 | . . . . 1 . 4 . 1 . . . 6 . 2 . . . . . . . Reactor 24 | . . . . . . . . . . . . . . . 2 . . 4 5 11 2 Propulsion 82 | 2 . . 2 1 . 2 9 5 1 1 10 3 1 5 3 . 8 12 7 2 8 Treads 1 | . . . . . . . . . . . . . . . . . . . . . 1 Leg 78 | 2 . . 2 1 . 2 9 5 1 1 10 3 1 5 3 . 8 12 6 2 5 Wheel 1 | . . . . . . . . . . . . . . . . . . . 1 . . Hover 2 | . . . . . . . . . . . . . . . . . . . . . 2 Flight . | . . . . . . . . . . . . . . . . . . . . . . Utility 111 | 1 1 1 5 . . 3 6 5 . 2 14 6 3 5 4 1 5 19 8 9 13 Device 74 | . . 1 3 . . 3 4 3 . 2 9 3 2 3 2 1 5 11 6 7 9 Storage 13 | 1 . . 1 . . . 1 1 . . 2 . . . 1 . . 5 1 . . Processor 2 | . . . . . . . . . . . . . . . . . . . 1 1 . Hackware 1 | . . . . . . . . . . . 1 . . . . . . . . . . Protection 21 | . 1 . 1 . . . 1 1 . . 2 3 1 2 1 . . 3 . 1 4 Artifact . | . . . . . . . . . . . . . . . . . . . . . . Weapon 81 | 2 1 . 3 2 . 9 6 12 . . 13 7 1 . 4 . . 7 3 4 7 Energy Gun 35 | 2 1 . 3 2 . 3 3 9 . . 9 2 . . 1 . . . . . . Energy Cannon 42 | . . . . . . 6 3 1 . . 4 5 1 . 3 . . 7 3 4 5 Ballistic Gun 2 | . . . . . . . . . . . . . . . . . . . . . 2 Ballistic Cannon . | . . . . . . . . . . . . . . . . . . . . . . Launcher . | . . . . . . . . . . . . . . . . . . . . . . Special Weapon 2 | . . . . . . . . 2 . . . . . . . . . . . . . Impact Weapon . | . . . . . . . . . . . . . . . . . . . . . . Slashing Weapon . | . . . . . . . . . . . . . . . . . . . . . . Piercing Weapon . | . . . . . . . . . . . . . . . . . . . . . . Special Melee Weapon . | . . . . . . . . . . . . . . . . . . . . . . Unidentified Prototypes 26 | . . 1 . . . . . 3 . . . 4 . . 4 . 2 10 1 1 . Parts Lost 69 | . . . 1 1 . . 2 5 1 . 4 1 2 5 . . . . . 14 33 Power 8 | . . . . 1 . . 2 . . . . . . 1 . . . . . 1 3 Propulsion 19 | . . . . . . . . 2 1 . 1 . 2 2 . . . . . 3 8 Utility 26 | . . . 1 . . . . 3 . . 1 . . 2 . . . . . 7 12 Weapon 16 | . . . . . . . . . . . 2 1 . . . . . . . 3 10 Highest Loss Streak 25 | . . . 1 1 . . 1 4 1 . 4 1 1 2 . . . . . 10 25 To Critical Strikes 2 | . . . . . . . . . . . . . . . . . . . . 1 1 Average Slot Usage (%) 97 | . 99 100 97 100 100 100 99 99 99 100 99 99 98 96 100 100 100 95 95 87 89 Engine 3 | . 14 14 11 8 . . 7 7 9 9 6 1 . . . . . . . . . Core 2 | . . . . 2 11 10 . 1 . . . 8 10 9 1 . . . . . . Reactor 3 | . . . . . . . . . . . . . . . 8 10 10 8 8 9 9 Leg 24 | . 28 28 22 22 22 22 27 26 26 27 26 29 24 23 26 26 26 23 26 23 17 Device 20 | . . 3 18 22 22 22 21 18 27 27 24 20 21 21 21 21 21 20 21 17 20 Storage 8 | . 14 14 11 11 11 11 9 9 9 9 6 5 5 5 5 5 5 8 7 8 7 Protection 3 | . 13 10 1 . . . 5 7 . . . 2 5 4 5 5 5 4 4 3 5 Energy Gun 12 | . 28 28 32 33 33 3 13 25 27 27 31 3 . . . . . . . . . Energy Cannon 16 | . . . . . . 29 13 . . . 1 24 31 31 31 31 31 27 26 22 18 Peak Build Rating 214 | 6 7 15 17 15 16 24 41 40 38 40 65 88 96 116 128 126 129 173 196 214 203 Average Rating 90 | 5 6 9 10 11 15 23 35 36 37 39 55 78 93 102 124 126 126 161 193 203 175 On Entrance 66 | . 6 7 15 11 15 16 24 35 38 38 39 65 87 92 116 126 126 126 173 196 101 Naked Turns . | . . . . . . . . . . . . . . . . . . . . . . Heaviest Build 179 | 11 15 15 20 25 25 30 44 39 27 32 73 79 87 102 114 113 114 149 164 179 168 Greatest Support 180 | 20 20 20 20 20 20 23 51 44 44 44 63 88 88 115 121 121 129 150 180 180 148 Greatest Overweight (x) 1 | . . . . 1 1 1 . . . . 1 . 1 1 1 . . . . 1 1 Average Overweight (x) . | . . . . . 1 1 . . . . . . . . . . . . . . . Largest Inventory Capacity 15 | 8 8 8 10 10 10 10 10 10 10 10 15 15 15 15 15 15 15 15 15 15 15 Average Capacity 12 | 6 8 8 8 10 10 10 10 10 10 10 13 15 15 15 15 15 15 15 15 15 14 Most Carried 15 | 6 8 8 10 10 10 10 10 10 10 10 15 15 14 15 15 15 15 15 15 15 14 Average Carried 11 | 2 6 7 8 9 9 9 9 9 9 10 11 14 12 14 14 15 14 14 14 14 8 Final Capacity 15 | 8 8 8 10 10 10 10 10 10 10 10 15 15 15 15 15 15 15 15 15 15 5 Final Carried 15 | 6 8 8 9 10 10 10 10 10 10 10 15 15 14 15 15 15 15 15 15 15 3 Class Distribution -------------------- 36% | Scavenger-Executioner 33% | Scavenger-Skirmisher 13% | Scavenger-Gunner 10% | Executioner 3% | Mutant Dominant Class ---------------- Mutant | -10/Materials Mutant | -10/Mines Gunner | -9/Materials Scavenger-Gunner | -9/Mines Scavenger-Gunner | -9/Exiles Scavenger-Skirmisher | -8/Mines Scavenger-Skirmisher | -8/Materials Scavenger-Skirmisher | -8/Storage Scavenger-Skirmisher | -8/Recycling Scavenger-Gunner | -8/Scraptown Scavenger-Skirmisher | -6/Factory Scavenger-Skirmisher | -5/Factory Executioner | -4/Factory Executioner | -4/Extension Scavenger-Executioner | -4/Cetus Scavenger-Executioner | -4/Archives Scavenger-Executioner | -4/Hub_04(d) Scavenger-Executioner | -3/Research Scavenger-Executioner | -2/Research Scavenger-Executioner | -1/Access Scavenger-Executioner | -1/Command Resources | -11 -10 -10 -9 -9 -9 -8 -8 -8 -8 -8 -6 -5 -4 -4 -4 -4 -4 -3 -2 -1 -1 ----------- Run | Yrd Mat Min Mat Min Exi Min Mat Sto Rec Scr Fac Fac Fac Ext Cet Arc Hub Res Res Acc Com Matter Collected 3560 | 212 68 . 102 50 . 185 254 205 71 37 385 190 73 133 147 10 130 480 231 335 262 Remotely . | . . . . . . . . . . . . . . . . . . . . . . Salvage Created 18361 | . 94 . 552 200 . 223 1489 1508 687 . 1238 631 534 1703 273 283 1473 1408 1753 2795 1517 Parts 728 | . 5 . 22 7 . 10 76 61 32 . 49 10 25 71 15 9 46 37 91 103 59 Haulers Intercepted 16 | . . . 2 . . . 2 2 . . 3 2 . . . . 1 4 . . . Recyclers Shooed 12 | . 1 . 2 1 . . . . 1 . 1 1 . . . . . . . 1 4 Parts Field Recycled . | . . . . . . . . . . . . . . . . . . . . . . Retrieved Matter . | . . . . . . . . . . . . . . . . . . . . . . Parts Self-Destructed . | . . . . . . . . . . . . . . . . . . . . . . Prevented . | . . . . . . . . . . . . . . . . . . . . . . Kills | -11 -10 -10 -9 -9 -9 -8 -8 -8 -8 -8 -6 -5 -4 -4 -4 -4 -4 -3 -2 -1 -1 ------- Run | Yrd Mat Min Mat Min Exi Min Mat Sto Rec Scr Fac Fac Fac Ext Cet Arc Hub Res Res Acc Com Combat Hostiles Destroyed 233 | . 2 . 8 6 . 5 28 26 10 . 16 6 8 21 3 3 17 11 19 29 15 Guns 68 | . 2 . 6 6 . . 6 23 10 . 13 . . . . . . . . . 2 Cannons 131 | . . . . . . 5 15 1 . . 1 6 7 21 1 2 14 8 15 23 12 AOE 2 | . . . . . . . . . . . 2 . . . . . . . . . . Classes Destroyed 22 | . 1 . 4 2 . 1 4 1 2 . 2 . . 1 . . 1 2 1 . . Worker 8 | . . . . . . . 1 . . . 2 . . . . . 1 1 1 2 . Builder 10 | . . . . . . . . . 1 . 1 . 2 2 . . . 2 1 1 . Tunneler 3 | . . . . . . . . . . . 2 . . . . . . 1 . . . Hauler 16 | . . . 2 . . . 2 2 . . 3 2 . . . . 1 4 . . . Recycler 16 | . . . 1 . . . 3 2 3 . 1 1 . 1 . . . . . 1 3 Operator 4 | . . . . . . . . 2 . . . . . 1 . . . . 1 . . Watcher 32 | . . . 2 . . . 4 1 . . . . 2 3 2 . 1 1 5 9 2 Swarmer 28 | . . . . 2 . 1 12 4 . . 3 . 2 4 . . . . . . . Saboteur 4 | . . . . . . . . . . . . . . . . . 1 . . 2 1 Grunt 73 | . 2 . 7 3 . 2 6 14 1 . 7 1 . 6 . . 11 2 . 8 3 Brawler 5 | . . . . 1 . 1 1 1 . . . . . . . . . . . 1 . Duelist 7 | . . . . . . . 2 1 . . 1 . . . . . . . . 2 1 Protector 4 | . . . . . . . 1 . 3 . . . . . . . . . . . . Sentry 38 | . . . 1 . . . 3 6 5 . 2 . . 6 . 3 2 1 3 5 1 Demolisher 1 | . . . . . . . . . 1 . . . . . . . . . . . . Specialist 4 | . . . . . . . 2 . . . . . . . . . . . 2 . . Hunter 27 | . . . . . . 1 1 . . . 1 2 2 3 . . 3 4 3 5 2 Programmer 31 | . . . . . . . . . . . 2 3 4 . . . . . 9 6 7 Heavy 1 | . . . . . . . . . . . . . . . . . . . 1 . . Behemoth 4 | . . . . . . . . . . . . . . 2 . . . 1 1 . . Cetus Guard 3 | . . . . . . . . . . . . . . . 3 . . . . . . Striker 2 | . . . . . . . . . . . . . . . . . . 2 . . . Executioner 1 | . . . . . . . . . . . . . . . . . . 1 . . . Thug 1 | . . . . . . . . . . . . . . . . . 1 . . . . Best Kill Streak 13 | . 1 . 4 3 . 3 6 11 6 . 7 3 3 4 3 3 8 4 5 13 5 Combat Bots Only 11 | . 1 . 3 3 . 3 5 11 5 . 3 2 2 4 2 3 7 3 4 8 5 Max Kills in Single Turn 5 | . 1 . 1 1 . 1 2 2 2 . 5 1 2 3 1 1 2 2 2 2 2 Gunslinging 1 | . . . . . . . . 1 1 . 1 . . . . . . . . . . Exploded 2 | . . . . . . . . . . . 2 . . . . . . . . . . Melee . | . . . . . . . . . . . . . . . . . . . . . . Uniques/NPCs Destroyed . | . . . . . . . . . . . . . . . . . . . . . . Combat | -11 -10 -10 -9 -9 -9 -8 -8 -8 -8 -8 -6 -5 -4 -4 -4 -4 -4 -3 -2 -1 -1 -------- Run | Yrd Mat Min Mat Min Exi Min Mat Sto Rec Scr Fac Fac Fac Ext Cet Arc Hub Res Res Acc Com Hostile Shots Fired 1473 | . 9 . 34 16 . 32 105 113 15 . 95 8 35 98 36 4 71 28 191 316 267 Missed 513 | . 4 . 11 5 . 11 29 37 4 . 44 1 13 38 17 . 23 7 86 90 93 Damage Taken 17769 | . 51 . 288 111 . 303 1030 1148 221 . 813 139 416 1176 421 134 939 255 1125 3198 6001 Core 2441 | . 13 . 20 18 . 41 131 75 15 . 107 . 15 162 39 . 45 67 60 97 1536 Absorbed by Shields 2422 | . . . . . . . . . . . . . . 96 92 . . 268 671 1295 . Redirected to Shielding 210 | . . . . . . . . . . . . . 59 151 . . . . . . . Ignored by Resistances 521 | . . . . . . . . . . . . . . . . . 39 . 9 114 359 Regen/Repaired (Parts) 468 | . . . . . . . . 339 . . 129 . . . . . . . . . . Core Remaining (%) 87 | 100 . 94 . . . 80 . . . 59 87 100 . . . . 77 94 95 . . Volleys Fired 612 | . 8 1 44 15 . 16 78 72 23 1 41 15 23 41 12 3 35 33 34 67 50 Largest 6 | . 2 2 3 3 . 3 3 3 3 3 5 5 6 6 6 6 6 6 6 6 6 Hottest 626 | . 100 100 165 140 . 204 204 190 183 183 334 450 540 540 540 540 540 463 463 463 626 Shots Fired 2497 | . 16 2 131 45 . 48 211 215 68 3 205 75 138 239 72 17 211 173 195 304 129 Gun 763 | . 16 2 131 45 . . 60 213 68 3 203 14 . . . . . . . . 8 Cannon 1734 | . . . . . . 48 151 2 . . 2 61 138 239 72 17 211 173 195 304 121 Launcher . | . . . . . . . . . . . . . . . . . . . . . . Special . | . . . . . . . . . . . . . . . . . . . . . . Kinetic 8 | . . . . . . . . . . . . . . . . . . . . . 8 Thermal 2489 | . 16 2 131 45 . 48 211 215 68 3 205 75 138 239 72 17 211 173 195 304 121 Explosive . | . . . . . . . . . . . . . . . . . . . . . . Electromagnetic . | . . . . . . . . . . . . . . . . . . . . . . Robot Hit Streak 19 | . 6 . 13 14 . 7 18 16 16 . 18 9 10 16 7 12 13 19 13 18 12 Robot Miss Streak 7 | . 1 . 3 2 . 5 4 5 4 . 5 7 3 5 3 . 5 4 4 4 5 Penetration Max . | . . . . . . . . . . . . . . . . . . . . . . Secondary Targets 15 | . . . 1 2 . . 1 7 1 . 3 . . . . . . . . . . Max Gunslinging Chain 1 | . . . 1 1 . . 1 1 1 . 1 . . . . . . . . . . Shots Hit Robots 1339 | . 11 . 67 26 . 28 125 156 47 . 100 49 47 132 39 11 95 72 98 156 80 Core Hits 523 | . 5 . 26 12 . 8 47 52 18 . 47 19 19 58 10 7 47 27 32 58 31 Critical Kills 23 | . . . . . . . 6 . . . . . 1 1 1 . 2 2 3 5 2 Critical Parts Destroyed . | . . . . . . . . . . . . . . . . . . . . . . Critical Strikes 64 | . 3 . 8 . . . 10 17 5 . 4 . 1 1 1 . 2 2 3 5 2 Burn 41 | . 3 . 8 . . . 4 17 5 . 4 . . . . . . . . . . Meltdown 22 | . . . . . . . 6 . . . . . 1 1 1 . 2 2 3 5 1 Destroy 1 | . . . . . . . . . . . . . . . . . . . . . 1 Melee Attacks . | . . . . . . . . . . . . . . . . . . . . . . Impact . | . . . . . . . . . . . . . . . . . . . . . . Slashing . | . . . . . . . . . . . . . . . . . . . . . . Piercing . | . . . . . . . . . . . . . . . . . . . . . . Sneak Attacks . | . . . . . . . . . . . . . . . . . . . . . . Combat Hostiles . | . . . . . . . . . . . . . . . . . . . . . . Follow-up Attacks . | . . . . . . . . . . . . . . . . . . . . . . Damage Inflicted 46688 | . 139 . 836 326 . 579 2715 3083 915 . 3293 1915 1746 5073 1447 447 3501 3325 5443 8329 3576 Guns 8982 | . 139 . 834 315 . . 723 3042 885 . 2559 301 . . . . . . . . 184 Cannons 36604 | . . . . . . 577 1976 41 . . 32 1614 1746 5027 1447 436 3501 3283 5203 8329 3392 Explosions 860 | . . . . . . . . . . . 697 . . . . . . . 163 . . Melee . | . . . . . . . . . . . . . . . . . . . . . . Ramming 242 | . . . 2 11 . 2 16 . 30 . 5 . . 46 . 11 . 42 77 . . Kinetic 184 | . . . . . . . . . . . . . . . . . . . . . 184 Thermal 45402 | . 139 . 834 315 . 577 2699 3083 885 . 2591 1915 1746 5027 1447 436 3501 3283 5203 8329 3392 Explosive 860 | . . . . . . . . . . . 697 . . . . . . . 163 . . Electromagnetic . | . . . . . . . . . . . . . . . . . . . . . . Impact . | . . . . . . . . . . . . . . . . . . . . . . Slashing . | . . . . . . . . . . . . . . . . . . . . . . Piercing . | . . . . . . . . . . . . . . . . . . . . . . Highest Corruption 29 | . . . . . . . . 4 6 . . 1 . 1 1 1 1 2 5 9 29 Average Corruption 3 | . . . . . . . . 4 5 . . 1 . 1 1 1 1 2 3 8 12 Corruption Purged . | . . . . . . . . . . . . . . . . . . . . . . Corruption Blocked . | . . . . . . . . . . . . . . . . . . . . . . Effects 153 | . . . . . . . . 6 29 . . 2 . 10 4 2 4 19 10 32 35 Message Errors 25 | . . . . . . . . 1 6 . . . . . . . 3 5 1 3 6 Matter Fused 35 | . . . . . . . . 1 6 . . 1 . 3 1 . . 7 1 8 7 Heat Flow Errors 16 | . . . . . . . . 1 4 . . . . . . 1 . 1 1 4 4 Energy Discharges 20 | . . . . . . . . 1 4 . . 1 . 2 1 . . 2 . 5 4 Parts Rejected 3 | . . . . . . . . . . . . . . . . . . . . 2 1 Parts Fused 2 | . . . . . . . . . . . . . . . . . . . 1 . 1 Data Loss (minor) 17 | . . . . . . . . 1 5 . . . . 1 2 . . 3 3 1 1 Data Loss (major) 7 | . . . . . . . . . . . . . . 1 . . . . 2 1 3 Misfires 4 | . . . . . . . . . . . . . . 1 . . 1 . . . 2 Alerts 8 | . . . . . . . . . 3 . . . . 1 . . . 1 1 1 1 Misdirections 1 | . . . . . . . . . . . . . . . . . . . . . 1 Weapon Failures 15 | . . . . . . . . 1 1 . . . . 1 . 1 . . . 7 4 Overload Shots 158 | . . . . . . . . . . . . 25 18 52 12 11 30 9 1 . . Effects 13 | . . . . . . . . . . . . 1 1 6 2 2 1 . . . . Energy Bleed 5 | . . . . . . . . . . . . 1 . 2 1 1 . . . . . Heat Surge 7 | . . . . . . . . . . . . . 1 4 . 1 1 . . . . Short Circuit 1 | . . . . . . . . . . . . . . . 1 . . . . . . Overflow Damage 1584 | . . . . . . 1 38 . . . 18 139 110 141 3 . 22 135 470 349 158 Projectiles 1502 | . . . . . . 1 38 . . . . 139 110 117 3 . 22 132 433 349 158 Explosions 18 | . . . . . . . . . . . 18 . . . . . . . . . . Melee 64 | . . . . . . . . . . . . . . 24 . . . 3 37 . . Knockbacks 1 | . . . . . . . . . . . . . . . . . . . 1 . . Impact 1 | . . . . . . . . . . . . . . . . . . . 1 . . Kinetic . | . . . . . . . . . . . . . . . . . . . . . . Secondary . | . . . . . . . . . . . . . . . . . . . . . . Self-Inflicted Damage 38 | . . . . . . . . . . . . . . . . . . . 38 . . Shots 1 | . . . . . . . . . . . . . . . . . . . 1 . . Rammed . | . . . . . . . . . . . . . . . . . . . . . . Targets Rammed 20 | . . . 1 2 . 2 6 . 3 . 1 . . 1 . 1 . 2 1 . . Kicked 20 | . . . 1 2 . 2 6 . 3 . 1 . . 1 . 1 . 2 1 . . Crushed . | . . . . . . . . . . . . . . . . . . . . . . Highest Temperature 634 | . 166 48 294 39 . 375 222 301 302 . 8 292 119 301 49 219 513 159 144 488 634 Average Temperature 84 | . 69 24 71 14 . 156 43 66 102 . 8 89 66 106 41 115 115 80 43 118 95 Received Heat Transfer 2238 | . 15 . 168 30 . 126 333 531 72 . 153 . . 95 44 . 221 4 4 154 288 Effects 8 | . . . . . . . . . . . . . . . . . 1 . . 3 4 Shutdowns 3 | . . . . . . . . . . . . . . . . . . . . 2 1 Energy Bleed 3 | . . . . . . . . . . . . . . . . . 1 . . . 2 Matter Decay 1 | . . . . . . . . . . . . . . . . . . . . 1 . Short Circuit 1 | . . . . . . . . . . . . . . . . . . . . . 1 Siege Activations . | . . . . . . . . . . . . . . . . . . . . . . Robots Corrupted 2 | . . . . . . . . . . . . . . . . . . 1 1 . . Combat Hostiles . | . . . . . . . . . . . . . . . . . . . . . . Parts Fried 1 | . . . . . . . . . . . . . . . . . . . 1 . . Impact Corruptions 3 | . . . . . . . . . . . . . . 1 . . . 1 1 . . Robots Melted 37 | . . . 2 . . . 7 2 . . . 2 1 1 3 1 3 3 4 7 1 Combat Hostiles 32 | . . . 2 . . . 7 2 . . . . 1 . 2 1 3 3 4 6 1 Parts Melted 199 | . . . 12 4 . 3 10 21 7 . 14 11 13 13 6 4 14 21 16 21 9 Heat Transferred 57454 | . 629 . 2904 866 . 1036 5216 6846 1909 . 4814 2314 1991 6042 1782 472 4463 3067 3972 6153 2978 Parts Sabotaged . | . . . . . . . . . . . . . . . . . . . . . . Parts Stolen . | . . . . . . . . . . . . . . . . . . . . . . Parts Stripped . | . . . . . . . . . . . . . . . . . . . . . . Power Chain Reactions . | . . . . . . . . . . . . . . . . . . . . . . Alert | -11 -10 -10 -9 -9 -9 -8 -8 -8 -8 -8 -6 -5 -4 -4 -4 -4 -4 -3 -2 -1 -1 ------- Run | Yrd Mat Min Mat Min Exi Min Mat Sto Rec Scr Fac Fac Fac Ext Cet Arc Hub Res Res Acc Com Peak Influence 1329 | . 113 43 251 153 . 134 626 729 501 . 298 333 219 626 686 354 954 746 970 1329 1153 Initial 795 | . . 43 16 42 . . 7 217 283 . . 145 65 33 350 194 123 500 335 581 795 Average 382 | . 31 43 88 85 . 46 398 461 358 . 94 218 88 168 523 332 580 577 511 895 953 Maximum Alert Level 4 | . . . 1 . . . 2 3 2 . 1 1 1 2 2 1 3 3 3 4 4 Low Security (%) 38 | 100 100 100 88 100 . 100 22 . . . 89 42 99 72 . 4 14 . . . . Level 1 17 | . . . 11 . . . 19 39 80 . 10 57 . 21 6 95 11 . 25 . . Level 2 30 | . . . . . . . 58 51 19 . . . . 6 93 . 18 98 62 27 . Level 3 11 | . . . . . . . . 8 . . . . . . . . 55 1 12 42 98 Level 4 2 | . . . . . . . . . . . . . . . . . . . . 29 1 Level 5 . | . . . . . . . . . . . . . . . . . . . . . . High Security . | . . . . . . . . . . . . . . . . . . . . . . Max Security . | . . . . . . . . . . . . . . . . . . . . . . Squads Dispatched 52 | . . . . . . . 5 5 . . 4 2 3 3 . . 6 5 4 9 6 Investigation 8 | . . . . . . . . 1 . . 2 . 1 1 . . . 1 . 1 1 Extermination 11 | . . . . . . . . . . . 2 1 2 . . . . . 2 2 2 Reinforcement 14 | . . . . . . . 1 1 . . . 1 . 2 . . 3 4 2 . . Assault 11 | . . . . . . . 1 3 . . . . . . . . 2 . . 2 3 Garrison 8 | . . . . . . . 3 . . . . . . . . . 1 . . 4 . Intercept . | . . . . . . . . . . . . . . . . . . . . . . Searches Triggered . | . . . . . . . . . . . . . . . . . . . . . . Construction Impeded 4 | . . . . . . . . 1 . . . . . 1 . . 1 1 . . . Haulers Reinforced 3 | . . . . . . . . . . . . 1 . . . . . 2 . . . Active Scanning Responses . | . . . . . . . . . . . . . . . . . . . . . . Cargo Convoy Interrupts . | . . . . . . . . . . . . . . . . . . . . . . Stealth | -11 -10 -10 -9 -9 -9 -8 -8 -8 -8 -8 -6 -5 -4 -4 -4 -4 -4 -3 -2 -1 -1 --------- Run | Yrd Mat Min Mat Min Exi Min Mat Sto Rec Scr Fac Fac Fac Ext Cet Arc Hub Res Res Acc Com Distress Signals 21 | . 1 . 1 . . . 1 1 . . 1 1 . . 2 . 3 7 1 2 . Communications Jammed . | . . . . . . . . . . . . . . . . . . . . . . Distress Signals . | . . . . . . . . . . . . . . . . . . . . . . Times Spotted 352 | . 7 . 11 10 . 10 39 34 8 . 17 6 13 24 11 6 26 16 25 49 40 Peak Tracking Total 14 | . 4 . 4 3 . 3 6 13 6 . 3 2 3 5 5 2 7 6 5 7 14 Tactical Retreats 20 | . 1 . 1 1 . 1 3 3 . . 2 . 1 2 . . . 1 . 1 3 Traps | -11 -10 -10 -9 -9 -9 -8 -8 -8 -8 -8 -6 -5 -4 -4 -4 -4 -4 -3 -2 -1 -1 ------- Run | Yrd Mat Min Mat Min Exi Min Mat Sto Rec Scr Fac Fac Fac Ext Cet Arc Hub Res Res Acc Com Traps Triggered 11 | . . . . . . . . . . . 1 . 1 2 . . . 2 . 4 1 Indirectly . | . . . . . . . . . . . . . . . . . . . . . . Trap Hack Attempts . | . . . . . . . . . . . . . . . . . . . . . . Triggered . | . . . . . . . . . . . . . . . . . . . . . . Disarmed . | . . . . . . . . . . . . . . . . . . . . . . Reprogrammed . | . . . . . . . . . . . . . . . . . . . . . . Reused . | . . . . . . . . . . . . . . . . . . . . . . Traps Extracted . | . . . . . . . . . . . . . . . . . . . . . . Installed . | . . . . . . . . . . . . . . . . . . . . . . Triggered 1 | . . . . . . . . . . . . . . . . . . 1 . . . Most Traps Carried 1 | . . . . 1 . . . . . . . . . . . . . . . . . Machines | -11 -10 -10 -9 -9 -9 -8 -8 -8 -8 -8 -6 -5 -4 -4 -4 -4 -4 -3 -2 -1 -1 ---------- Run | Yrd Mat Min Mat Min Exi Min Mat Sto Rec Scr Fac Fac Fac Ext Cet Arc Hub Res Res Acc Com Machines Disabled 41 | . . . . . . . 3 5 . . 4 . 3 4 . . 7 2 7 4 2 Max in Single Turn 3 | . . . . . . . 1 1 . . 3 . 1 1 . . 2 1 2 1 1 Garrison Access 2 | . . . . . . . . . . . . . . . . . 1 1 . . . Machines Repaired . | . . . . . . . . . . . . . . . . . . . . . . Machines Dismantled 2 | . . . . . . . . 2 . . . . . . . . . . . . . Machines Sabotaged . | . . . . . . . . . . . . . . . . . . . . . . Overloaded Fab Kills . | . . . . . . . . . . . . . . . . . . . . . . Hacking | -11 -10 -10 -9 -9 -9 -8 -8 -8 -8 -8 -6 -5 -4 -4 -4 -4 -4 -3 -2 -1 -1 --------- Run | Yrd Mat Min Mat Min Exi Min Mat Sto Rec Scr Fac Fac Fac Ext Cet Arc Hub Res Res Acc Com Machines Accessed 66 | . 3 . 5 . 1 1 6 5 11 . 5 . 4 12 2 1 3 1 1 4 1 Terminals 47 | . 3 . 4 . . 1 4 4 6 . 3 . 1 11 2 . 2 . 1 4 1 Fabricators . | . . . . . . . . . . . . . . . . . . . . . . Repair Stations 4 | . . . . . . . . 1 . . 2 . 1 . . . . . . . . Recycling Units 8 | . . . . . . . 1 . 5 . . . 1 1 . . . . . . . Scanalyzers 1 | . . . 1 . . . . . . . . . . . . . . . . . . Garrison Access 4 | . . . . . . . 1 . . . . . 1 . . . 1 1 . . . Total Hacks 202 | . 12 . 21 . 1 6 17 16 29 . 9 . 10 26 8 25 11 3 2 5 1 Successful 104 | . 5 . 13 . 1 3 7 9 15 . 4 . 1 11 2 25 4 1 1 1 1 Failed 96 | . 7 . 8 . . 2 9 7 14 . 5 . 9 15 6 . 7 2 1 4 . Catastrophic 21 | . 2 . 2 . . . 2 2 2 . 2 . . 2 2 . 2 1 . 2 . Database Lockouts 2 | . . . . . . 1 1 . . . . . . . . . . . . . . Manual 78 | . 8 . 8 . 1 5 11 2 23 . 4 . 2 8 1 . 2 . . 3 . Terminals 133 | . 12 . 15 . . 6 14 8 21 . 6 . 2 24 8 . 9 . 2 5 1 Fabricators . | . . . . . . . . . . . . . . . . . . . . . . Repair Stations 14 | . . . . . . . . 8 . . 3 . 3 . . . . . . . . Recycling Units 14 | . . . . . . . 2 . 8 . . . 2 2 . . . . . . . Scanalyzers 6 | . . . 6 . . . . . . . . . . . . . . . . . . Garrison Access 9 | . . . . . . . 1 . . . . . 3 . . . 2 3 . . . Terminal Hacks 71 | . 4 . 8 . 1 3 4 2 5 . 2 . . 9 2 25 3 . 1 1 1 Record 33 | . . . 1 . . 1 . . 2 . 2 . . . 2 25 . . . . . Prototype ID Bank 16 | . 3 . 4 . . 2 1 . 3 . . . . 2 . . . . 1 . . Open Door 6 | . . . . . . . . 1 . . . . . 4 . . . . . . 1 Branch Access Points 3 | . . . . . . . 1 1 . . . . . . . . . . . 1 . Alert Level 5 | . . . 2 . . . 2 . . . . . . 1 . . . . . . . Unreport Threat 1 | . . . . . . . . . . . . . . . . . 1 . . . . Locate Traps 3 | . . . . . . . . . . . . . . 2 . . 1 . . . . Registered Components 3 | . 1 . 1 . . . . . . . . . . . . . 1 . . . . Derelict Proto ID Bank 1 | . . . . . 1 . . . . . . . . . . . . . . . . Fabricator Hacks . | . . . . . . . . . . . . . . . . . . . . . . Repair Station Hacks 8 | . . . . . . . . 7 . . . . 1 . . . . . . . . Scan Component 5 | . . . . . . . . 4 . . . . 1 . . . . . . . . Repair 3 | . . . . . . . . 3 . . . . . . . . . . . . . Recycling Unit Hacks 5 | . . . . . . . . . 4 . . . . 1 . . . . . . . Report Inventory 4 | . . . . . . . . . 4 . . . . . . . . . . . . Retrieve Components 1 | . . . . . . . . . . . . . . 1 . . . . . . . Scanalyzer 3 | . . . 3 . . . . . . . . . . . . . . . . . . Insert Component 2 | . . . 2 . . . . . . . . . . . . . . . . . . Analyze 1 | . . . 1 . . . . . . . . . . . . . . . . . . Garrison Access Hacks 1 | . . . . . . . . . . . . . . . . . . 1 . . . Seal Access 1 | . . . . . . . . . . . . . . . . . . 1 . . . Unauthorized Hacks 16 | . 1 . 2 . . . 3 . 6 . 2 . . 1 . . 1 . . . . Terminals 10 | . 1 . 2 . . . 3 . 2 . . . . 1 . . 1 . . . . Botnet 9 | . 1 . 2 . . . 3 . 2 . . . . . . . 1 . . . . Disrupt 1 | . . . . . . . . . . . . . . 1 . . . . . . . Fabricators . | . . . . . . . . . . . . . . . . . . . . . . Repair Stations 2 | . . . . . . . . . . . 2 . . . . . . . . . . Patch 2 | . . . . . . . . . . . 2 . . . . . . . . . . Recycling Units 4 | . . . . . . . . . 4 . . . . . . . . . . . . Tunnel 4 | . . . . . . . . . 4 . . . . . . . . . . . . Scanalyzers . | . . . . . . . . . . . . . . . . . . . . . . Garrison Access . | . . . . . . . . . . . . . . . . . . . . . . Data Cores Recovered 1 | . . . . . . . . . . . . . . . . . 1 . . . . Used . | . . . . . . . . . . . . . . . . . . . . . . Hacking Detections 55 | . 3 . 5 . . 1 6 4 7 . 3 . 4 11 3 . 3 . 1 3 1 Full Trace Events 10 | . . . 1 . . 1 . 1 6 . . . . 1 . . . . . . . Feedback Events 2 | . . . . . . . . . 2 . . . . . . . . . . . . Corruption 2 | . . . . . . . . . 2 . . . . . . . . . . . . Feedback Blocked . | . . . . . . . . . . . . . . . . . . . . . . Robot Schematics Acquired . | . . . . . . . . . . . . . . . . . . . . . . Robots Built . | . . . . . . . . . . . . . . . . . . . . . . Authchips . | . . . . . . . . . . . . . . . . . . . . . . Time . | . . . . . . . . . . . . . . . . . . . . . . Total Robot Build Rating . | . . . . . . . . . . . . . . . . . . . . . . Part Schematics Acquired . | . . . . . . . . . . . . . . . . . . . . . . Parts Built . | . . . . . . . . . . . . . . . . . . . . . . Authchips . | . . . . . . . . . . . . . . . . . . . . . . Time . | . . . . . . . . . . . . . . . . . . . . . . Total Part Build Rating . | . . . . . . . . . . . . . . . . . . . . . . Parts Repaired 3 | . . . . . . . . 3 . . . . . . . . . . . . . Time 131 | . . . . . . . . 131 . . . . . . . . . . . . . Parts Recycled . | . . . . . . . . . . . . . . . . . . . . . . Recycled Matter . | . . . . . . . . . . . . . . . . . . . . . . Retrieved Matter . | . . . . . . . . . . . . . . . . . . . . . . Retrieved Components . | . . . . . . . . . . . . . . . . . . . . . . Parts Scanalyzed 1 | . . . 1 . . . . . . . . . . . . . . . . . . Part Schematics Acquired . | . . . . . . . . . . . . . . . . . . . . . . Parts Damaged 1 | . . . 1 . . . . . . . . . . . . . . . . . . Bothacking | -11 -10 -10 -9 -9 -9 -8 -8 -8 -8 -8 -6 -5 -4 -4 -4 -4 -4 -3 -2 -1 -1 ------------ Run | Yrd Mat Min Mat Min Exi Min Mat Sto Rec Scr Fac Fac Fac Ext Cet Arc Hub Res Res Acc Com Used RIF Installer . | . . . . . . . . . . . . . . . . . . . . . . Robots Hacked . | . . . . . . . . . . . . . . . . . . . . . . Non-combat . | . . . . . . . . . . . . . . . . . . . . . . Combat . | . . . . . . . . . . . . . . . . . . . . . . Robot Hacks Applied . | . . . . . . . . . . . . . . . . . . . . . . Relay Couplers Released 9 | . . . . . . . . . . . . . . . . . 2 . 7 . . Machine Destruction 2 | . . . . . . . . . . . . . . . . . 2 . . . . Programmers 7 | . . . . . . . . . . . . . . . . . . . 7 . . Fabnet Peak Effective % . | . . . . . . . . . . . . . . . . . . . . . . Robots Rewired 10 | . . . . . . . . . 6 . . . . 4 . . . . . . . Allies Hacked . | . . . . . . . . . . . . . . . . . . . . . . Hacks Repelled . | . . . . . . . . . . . . . . . . . . . . . . Allies | -11 -10 -10 -9 -9 -9 -8 -8 -8 -8 -8 -6 -5 -4 -4 -4 -4 -4 -3 -2 -1 -1 -------- Run | Yrd Mat Min Mat Min Exi Min Mat Sto Rec Scr Fac Fac Fac Ext Cet Arc Hub Res Res Acc Com Total Allies 29 | . . . . 4 . . . 2 6 . . . . 12 5 . . . . . . Largest Group 15 | . . . . 3 3 2 . 2 6 5 4 . . 10 15 14 10 . . . . Highest-Rated Group 1009 | . . . . 55 55 24 . 62 98 83 78 . . 536 1009 913 633 . . . . Highest-Rated Ally 159 | . . . . 31 31 16 . 31 34 34 34 . . 159 159 159 96 . . . . Total Orders . | . . . . . . . . . . . . . . . . . . . . . . Ally Attacks 225 | . . . . 20 . 26 . 8 3 . 4 . . 28 50 17 69 . . . . Total Damage 5444 | . . . . 226 . 277 . 129 79 . 42 . . 799 1311 593 1988 . . . . Kills 34 | . . . . 3 . 5 . 2 . . 1 . . 4 5 2 12 . . . . Allies Corrupted 1 | . . . . . . . . 1 . . . . . . . . . . . . . Allies Melted 1 | . . . . . . . . 1 . . . . . . . . . . . . . Intel | -11 -10 -10 -9 -9 -9 -8 -8 -8 -8 -8 -6 -5 -4 -4 -4 -4 -4 -3 -2 -1 -1 ------- Run | Yrd Mat Min Mat Min Exi Min Mat Sto Rec Scr Fac Fac Fac Ext Cet Arc Hub Res Res Acc Com Robot Analysis Total . | . . . . . . . . . . . . . . . . . . . . . . Derelict Logs Recovered 3 | . . 1 . 2 . . . . . . . . . . . . . . . . . Drone Launches . | . . . . . . . . . . . . . . . . . . . . . . Drone Recoveries . | . . . . . . . . . . . . . . . . . . . . . . Exploration | -11 -10 -10 -9 -9 -9 -8 -8 -8 -8 -8 -6 -5 -4 -4 -4 -4 -4 -3 -2 -1 -1 ------------- Run | Yrd Mat Min Mat Min Exi Min Mat Sto Rec Scr Fac Fac Fac Ext Cet Arc Hub Res Res Acc Com Turns Passed 17098 | 72 192 296 514 646 543 855 1273 1034 1026 900 1151 433 967 1310 540 168 393 1604 1067 1437 677 Spaces Moved 9881 | 50 122 230 255 387 284 385 688 393 701 740 656 221 492 515 261 115 195 1124 714 982 371 Core 27 | 3 . . . . . . . . . . . . . . . . . . . . 24 Treads . | . . . . . . . . . . . . . . . . . . . . . . Legs 9854 | 47 122 230 255 387 284 385 688 393 701 740 656 221 492 515 261 115 195 1124 714 982 347 Wheels . | . . . . . . . . . . . . . . . . . . . . . . Hover . | . . . . . . . . . . . . . . . . . . . . . . Flight . | . . . . . . . . . . . . . . . . . . . . . . Fastest Speed 50 | 50 120 120 120 120 190 190 120 120 120 120 120 120 120 120 120 120 120 112 110 110 50 Average Speed 128 | 115 120 120 120 149 190 190 120 120 120 120 120 120 168 150 122 120 120 117 110 110 134 Slowest Speed 190 | 120 120 120 120 190 190 190 120 120 120 120 190 120 190 190 190 120 120 120 110 180 190 Overloaded Moves . | . . . . . . . . . . . . . . . . . . . . . . Propulsion Burnouts . | . . . . . . . . . . . . . . . . . . . . . . Robots Hopped . | . . . . . . . . . . . . . . . . . . . . . . Cave-ins Triggered 1 | . . . . . . . . . . . . . . . . . . . . . 1 Exploration Rate (%) 45 | 4 29 59 30 87 74 73 46 57 99 58 14 9 12 77 69 89 22 33 21 32 13 Regions Visited 21 Branch Regions 12 Pre-discovered Areas 5 | . . 1 . . . . . . 4 . . . . . . . . . . . . Known Exits Taken 3 | . . . . . . . 1 1 . . . . . . . . . . . 1 . Unknown Exits Taken 18 | 1 1 1 1 1 1 1 . . 1 1 1 1 1 1 1 1 1 1 1 . . Scrap Searched 6 | . . . . 2 . 1 . . . 3 . . . . . . . . . . . Spaces Dug 44 | . . . . . . . . . . . . . 9 . . . 1 16 7 10 1 Terrain Destroyed 404 | . . . . . . . . . . . 22 8 30 31 3 4 30 70 88 88 30 Melee . | . . . . . . . . . . . . . . . . . . . . . . Projectile 359 | . . . . . . . . . . . . 8 30 31 3 4 30 70 65 88 30 AOE 45 | . . . . . . . . . . . 22 . . . . . . . 23 . . Terrain Rammed . | . . . . . . . . . . . . . . . . . . . . . . Walls Destroyed . | . . . . . . . . . . . . . . . . . . . . . . Machines Disabled . | . . . . . . . . . . . . . . . . . . . . . . Actions | -11 -10 -10 -9 -9 -9 -8 -8 -8 -8 -8 -6 -5 -4 -4 -4 -4 -4 -3 -2 -1 -1 --------- Run | Yrd Mat Min Mat Min Exi Min Mat Sto Rec Scr Fac Fac Fac Ext Cet Arc Hub Res Res Acc Com Total 12967 | 61 151 248 367 421 288 470 976 761 834 749 901 353 577 968 455 138 281 1346 928 1212 482 Wait 1678 | . 16 15 39 7 3 39 148 233 30 2 113 77 56 345 152 18 20 96 141 113 15 Move 9860 | 49 121 229 254 386 283 384 687 392 700 739 655 220 491 514 260 114 194 1123 713 981 371 Hop . | . . . . . . . . . . . . . . . . . . . . . . Pick Up 145 | 6 3 1 8 3 1 1 11 11 1 1 25 7 2 12 6 . 5 17 4 9 11 Fast Attach 61 | 6 1 . 2 . . . 3 4 . . 2 5 . 2 2 . 1 10 2 13 8 Attach 67 | . . . 3 1 . . 3 4 1 . 13 4 3 5 . . . 3 3 5 19 Detach 16 | . . . 2 . . . . . . . 5 1 . 1 . . . . . 5 2 Swap 199 | . 1 1 5 4 . 19 20 16 1 4 23 14 2 5 11 1 12 30 18 9 3 Drop 188 | . 1 1 9 3 1 9 20 13 1 2 23 10 . 11 12 1 14 32 12 10 3 Fire 612 | . 8 1 44 15 . 16 78 72 23 1 41 15 23 41 12 3 35 33 34 67 50 Melee . | . . . . . . . . . . . . . . . . . . . . . . Ram . | . . . . . . . . . . . . . . . . . . . . . . Kick 20 | . . . 1 2 . 2 6 . 3 . 1 . . 1 . 1 . 2 1 . . Crush . | . . . . . . . . . . . . . . . . . . . . . . Escape Stasis 5 | . . . . . . . . . . . . . . 5 . . . . . . . Rewire 100 | . . . . . . . . . 74 . . . . 26 . . . . . . . Trap . | . . . . . . . . . . . . . . . . . . . . . . Miscellaneous 16 | . . . . . . . . 16 . . . . . . . . . . . . . Route ------- -11/Scrapyard -10/Materials -10/Mines -9/Materials -9/Mines (discovered 3 exits: *Mat x2 / *Exi) -9/Exiles -8/Mines -8/Materials (discovered 3 exits: [*Fac] / *Sto x2) -8/Storage -8/Recycling (discovered 2 exits: *Fac / [*Scr]) -8/Scraptown -6/Factory -5/Factory -4/Factory (discovered 2 exits: *Res / *Ext) -4/Extension (discovered 2 exits: *Res / *Cet) -4/Cetus (discovered 2 exits: *Res / *Arc) -4/Archives (discovered 3 exits: *Res / *Hub x2) -4/Hub_04(d) (discovered 2 exits: *Res x2) -3/Research (discovered 2 exits: *Res / [*Qua]) -2/Research (discovered 2 exits: *Acc / *Tes) -1/Access -1/Command History --------- Turn | Location | Event 4 | -11/Scrapyard | Discovered new exit (range 16) 73 | -11/Scrapyard | Entered Materials 232 | -10/Materials | Discovered new exit (range 11) 265 | -10/Materials | Entered Mines 313 | -10/Mines | Build established: Mutant 475 | -10/Mines | Learned location of Storage (-8) 483 | -10/Mines | Discovered new exit (range 14) 484 | -10/Mines | Found a damaged Exp. Sensor Array with a note attached 487 | -10/Mines | Found Prototype Device 487 | -10/Mines | Identified Exp. Sensor Array 561 | -10/Mines | Entered Materials 561 | -9/Materials | Evolved 2 slots: Utility x1, Weapon x1 996 | -9/Materials | Discovered new exit (range 14) 1075 | -9/Materials | Entered Mines 1162 | -9/Mines | Assisted by bots powering up and referring to "LRC-V3" 1215 | -9/Mines | Found a hidden stash of uninstalled traps 1223 | -9/Mines | Learned Materials emergency access door positions 1224 | -9/Mines | Build established: Scavenger-Gunner 1267 | -9/Mines | Received a Rocket Launcher from a helpful Derelict 1268 | -9/Mines | Learned Materials trap positions 1348 | -9/Mines | Discovered new exit (range 9) 1475 | -9/Mines | Discovered new exit (range 9) 1678 | -9/Mines | Received a Mining Laser from a helpful Derelict 1708 | -9/Mines | Deemed a non-threat by the Exiles lab entrance 1710 | -9/Mines | Discovered new exit (range 5) 1721 | -9/Mines | Entered Exiles 1721 | -9/Exiles | Accompanied by 3 allies 1769 | -9/Exiles | Met 8R-AWN 1801 | -9/Exiles | Met EX-HEX 1856 | -9/Exiles | Met EX-BIN 1883 | -9/Exiles | Aligned with FarCom system 1885 | -9/Exiles | Given EX-Vault access code 1929 | -9/Exiles | Opened EX-Vault 1939 | -9/Exiles | Found Superbattery 1974 | -9/Exiles | Warned to stay clear of 0b10 Research branches 2031 | -9/Exiles | Met EX-DEC 2095 | -9/Exiles | Visited The Gauntlet 2240 | -9/Exiles | Discovered new exit (range 14) 2264 | -9/Exiles | Left Exiles lab with Superbattery 2264 | -9/Exiles | Entered Mines 2264 | -8/Mines | Accompanied by 2 allies 2280 | -8/Mines | Central database locked down 2573 | -8/Mines | Build established: Scavenger-Skirmisher 3002 | -8/Mines | Discovered new exit (range 5) 3119 | -8/Mines | Entered Materials 3119 | -8/Materials | Evolved 2 slots: Propulsion x1, Utility x1 3120 | -8/Materials | Loaded intel: 24 trap records 3123 | -8/Materials | Discovered new exit (range 14) 3471 | -8/Materials | Garrison activated, responded to threat 3919 | -8/Materials | First assault squad dispatched 4087 | -8/Materials | Identified exit to Storage 4206 | -8/Materials | Central database locked down 4303 | -8/Materials | Discovered new exit (range 11) 4392 | -8/Materials | Entered Storage 4704 | -8/Storage | Identified exit to Recycling 4767 | -8/Storage | Repaired Imp. Aluminum Leg 4830 | -8/Storage | Repaired Broken Imp. Carbon-fiber Leg 4869 | -8/Storage | Repaired Hrd. Medium Armor Plating 4967 | -8/Storage | Met a pair of Derelict thieves 5172 | -8/Storage | Lost 4 parts (2n2u) 5177 | -8/Storage | Destroyed 11 combat bots 5192 | -8/Storage | First assault squad dispatched 5422 | -8/Storage | Used back door to open Recycling access 5426 | -8/Storage | Entered Recycling 6042 | -8/Recycling | Discovered new exit (range 15) 6121 | -8/Recycling | Scanned before Scraplab entrance 6428 | -8/Recycling | Entered Scraplab 6438 | -8/Recycling | Discovered new exit (range 3) 6452 | -8/Recycling | Entered Scraptown 6452 | -8/Scraptown | Accompanied by 5 allies 6452 | -8/Scraptown | System corruption cleaned by C-Scrubber 6671 | -8/Scraptown | Discovered new exit (range 5) 6749 | -8/Scraptown | Build established: Scavenger-Gunner 6836 | -8/Scraptown | Visited Spacefarers 6860 | -8/Scraptown | Visited Fellowship of the Rings 6946 | -8/Scraptown | Visited IN-MT5's Study 6969 | -8/Scraptown | Visited Awakened 6984 | -8/Scraptown | Visited Symbiants 7148 | -8/Scraptown | Turned away by UFD registrar 7165 | -8/Scraptown | Visited SPCMW 7183 | -8/Scraptown | Visited Comm Corps 7352 | -8/Scraptown | Entered Factory 7352 | -6/Factory | Accompanied by 4 allies 7352 | -6/Factory | Evolved 4 slots: Propulsion x1, Utility x1, Weapon x2 7620 | -6/Factory | Lost 4 allies 7665 | -6/Factory | Build established: Scavenger-Skirmisher 8246 | -6/Factory | Lost 4 parts (1n1u2w) 8356 | -6/Factory | Discovered new exit (range 8) 8503 | -6/Factory | Entered another Factory area 8503 | -5/Factory | Evolved 2 slots: Power x1, Propulsion x1 8850 | -5/Factory | Discovered new exit (range 7) 8936 | -5/Factory | Entered another Factory area 8936 | -4/Factory | Evolved 2 slots: Utility x1, Weapon x1 9465 | -4/Factory | Build established: Executioner 9776 | -4/Factory | Discovered new exit (range 5) 9846 | -4/Factory | Discovered new exit (range 15) 9903 | -4/Factory | Entered Extension 10173 | -4/Extension | Rescued a captive Derelict 10173 | -4/Extension | Rescued a captive Derelict 10619 | -4/Extension | Spotted B-86 Titan 10704 | -4/Extension | Destroyed B-86 Titan 10716 | -4/Extension | Spotted B-86 Titan 10729 | -4/Extension | Destroyed B-86 Titan 10926 | -4/Extension | Rescued a captive Derelict 10954 | -4/Extension | Rescued a captive Derelict 11016 | -4/Extension | Rescued a captive Derelict 11017 | -4/Extension | Rescued a captive Derelict 11034 | -4/Extension | Rescued A7 11110 | -4/Extension | Rescued a captive Derelict 11111 | -4/Extension | Rescued a captive Derelict 11160 | -4/Extension | Discovered new exit (range 10) 11162 | -4/Extension | Discovered new exit (range 6) 11185 | -4/Extension | Disrupted transfer network 11200 | -4/Extension | Build established: Scavenger-Executioner 11213 | -4/Extension | Entered Cetus 11213 | -4/Cetus | Accompanied by 10 allies (A7) 11218 | -4/Cetus | Acquired a Cetus Manufacturing Module code from A7 11232 | -4/Cetus | Spotted Cetus Guard 11232 | -4/Cetus | Spotted Cetus Guard 11234 | -4/Cetus | Spotted Cetus Guard 11238 | -4/Cetus | Spotted Cetus Guard 11241 | -4/Cetus | Allies destroyed Cetus Guard 11246 | -4/Cetus | Destroyed Cetus Guard 11253 | -4/Cetus | Allies destroyed Cetus Guard 11255 | -4/Cetus | Allies destroyed Cetus Guard 11319 | -4/Cetus | Started Cetus Manufacturing Module 11344 | -4/Cetus | Manufactured an Enhanced Grunt 11369 | -4/Cetus | Manufactured an Enhanced Grunt 11394 | -4/Cetus | Manufactured an Enhanced Grunt 11419 | -4/Cetus | Manufactured an Enhanced Grunt 11444 | -4/Cetus | Manufactured an Enhanced Grunt 11503 | -4/Cetus | Discovered new exit (range 15) 11541 | -4/Cetus | Spotted Cetus Guard 11541 | -4/Cetus | Spotted Cetus Guard 11541 | -4/Cetus | Spotted Cetus Guard 11542 | -4/Cetus | Spotted Cetus Guard 11545 | -4/Cetus | Destroyed Cetus Guard 11556 | -4/Cetus | Allies destroyed Cetus Guard 11559 | -4/Cetus | Destroyed Cetus Guard 11564 | -4/Cetus | Allies destroyed Cetus Guard 11576 | -4/Cetus | Discovered new exit (range 16) 11585 | -4/Cetus | Met Revision 17 11753 | -4/Cetus | Entered Archives 11753 | -4/Archives | Accompanied by 14 allies (A7) 11798 | -4/Archives | Unable to access archive contents 11803 | -4/Archives | Discovered new exit (range 15) 11806 | -4/Archives | Lost 3 allies 11810 | -4/Archives | Unable to access archive contents 11818 | -4/Archives | Discovered new exit (range 16) 11826 | -4/Archives | Unable to access archive contents 11841 | -4/Archives | Discovered new exit (range 15) 11921 | -4/Archives | Entered Hub_04(d) 11921 | -4/Hub_04(d) | Accompanied by 10 allies 11965 | -4/Hub_04(d) | Garrison activated, responded to threat 12051 | -4/Hub_04(d) | Lost 6 allies 12051 | -4/Hub_04(d) | Found Prototype Device 12051 | -4/Hub_04(d) | Identified Exp. Thermal Shield 12102 | -4/Hub_04(d) | Lost 4 allies 12118 | -4/Hub_04(d) | Destroyed 7 combat bots 12171 | -4/Hub_04(d) | First assault squad dispatched 12244 | -4/Hub_04(d) | Discovered new exit (range 7) 12274 | -4/Hub_04(d) | Discovered new exit (range 15) 12314 | -4/Hub_04(d) | Entered Research 12314 | -3/Research | Evolved 2 slots: Utility x2 12514 | -3/Research | Revision forces began assault on 0b10 12619 | -3/Research | Met up with Revision 17++ 12911 | -3/Research | Lost 3 allies 13014 | -3/Research | Research terminal network offline 13022 | -3/Research | Discovered new exit (range 5) 13093 | -3/Research | Discovered new exit (range 12) 13093 | -3/Research | Spotted B-90 Cyclops 13095 | -3/Research | Destroyed B-90 Cyclops 13368 | -3/Research | Found Prototype Protection 13368 | -3/Research | Identified Centrium Heavy Armor Plating 13426 | -3/Research | Spotted Executioner 13427 | -3/Research | Spotted Striker 13427 | -3/Research | Destroyed Executioner 13430 | -3/Research | Destroyed Striker 13857 | -3/Research | Spotted Striker 13866 | -3/Research | Lost 6 allies 13868 | -3/Research | Destroyed Striker 13918 | -3/Research | Entered another Research area 13918 | -2/Research | Evolved 2 slots: Propulsion x1, Utility x1 14244 | -2/Research | Spotted B-90 Cyclops 14249 | -2/Research | Destroyed B-90 Cyclops 14318 | -2/Research | Found Unknown Device 14318 | -2/Research | Identified Adv. Force Booster 14769 | -2/Research | Discovered new exit (range 6) 14783 | -2/Research | Identified exit to Testing 14831 | -2/Research | Discovered new exit (range 10) 14985 | -2/Research | Entered Access 14985 | -1/Access | Evolved 2 slots: Power x1, Utility x1 15019 | -1/Access | Garrison activated, responded to threat 15623 | -1/Access | Destroyed 8 combat bots 15759 | -1/Access | Found Prototype Device 15759 | -1/Access | Identified Adv. Kinecellerator 15840 | -1/Access | Identified exit to Command 15924 | -1/Access | Garrison activated, responded to threat 16017 | -1/Access | First assault squad dispatched 16315 | -1/Access | Spotted B-99 Colossus 16400 | -1/Access | Spotted B-99 Colossus 16422 | -1/Access | Entered Command 16444 | -1/Command | Lost 10 parts (1p3n4u2w) 16611 | -1/Command | System corruption reached 10% 16698 | -1/Command | First assault squad dispatched 16818 | -1/Command | Crushed by falling debris 16855 | -1/Command | Lost 4 parts (1n3w) 17053 | -1/Command | Spotted M Guard 17053 | -1/Command | Spotted M Guard 17053 | -1/Command | Spotted Combat Programmer 17054 | -1/Command | Spotted Combat Programmer 17082 | -1/Command | Core integrity fell below 50% 17088 | -1/Command | Core integrity fell below 20% 17099 | -1/Command | Destroyed by Combat Programmer with EMDS Last Messages --------------- 17084_ Penetrated by EMDS Slug. 17085_ Dropped Lrg. Storage Unit. 17085_ Combat Programmer knocked back. 17085_ Penetrated by EMDS Slug. 17086_ Adv. Targeting Computer destroyed. 17087_ Adv. Heat Sink destroyed. 17087_ Connecting with Door Terminal... >>Open(Door) Sealed Barrier opened. 17089_ Knocked back. 17089_ EMDS Slug penetrates Reinforced Barrier. 17092_ 4CUQ0GKW6ILHWJE6HJJ|EW 17092_ Penetrated by EMDS Slug. 17092_ Adv. Weapon Cycler destroyed. 17092_ Door malfunctions. 17093_ Penetrated by EMDS Slug. 17094_ Energy Filter destroyed. 17095_ Penetrated by EMDS Slug. 17097_ EMDS Slug penetrates Reinforced Barrier. 17099_ Penetrated by EMDS Slug. Map ----- +----------------------------------------------------+ | ?????????????????????????????????????????????????? | | ?????????????????????????????????????????????????? | | ?????????????????????????????????????????????????? | | ?????????????????????????????????????????????????? | | ?????????????????????????????????????????????????? | | ?????????????????????????????????????????????????? | | ?????????????????????????????????????????????????? | | ?????????????????????????????????????????????????? | | ?????????????????????????????????????????????????? | | ?????????????????????????????????????????????????? | | ?????????????????????????????????????????????????? | | ?????????????????????????????????????????????????? | | ?????????????????????????????????????????????????? | | ?????????????????????????????????????????????????? | | ?????????????????????????????????????????????????? | | ?????????????????????????????????????????????????? | | ?????????????????????????????????????????????????? | | ?????????????????????????????????????????????????? | | ??????????????????????????????????????????????? | | ??????????????????????????????????????????????# | | ????????????###???????????????????????????????# | | ???????????"" ?????????????????????????????# | | ??????????? ???????????????????????????# | | ??????????" #######################??# | | ??????????" / #??# | | ??????????" / @ p #??# | | ?????????? / pl %#??# | | ?????????? ################### Y #### | | ??????????? ????????????????????# ## | | ??????????? ???????????????????????# Y ## # | | ?????????MMM ??????????????????????????# T# | | ?????????MMM???????????????????????????# ## | | ?????????MMM???????????????????????????# % * | | ???????????????????????????????????????# *!* | | ???????????????????????????????????????# | | ???????????????????????????????????????# | | ???????????????????????????????????????# % | | ???????????????????????????????????????# # | | ???????????????????????????????????????###### | | ????????????????????????????????????????????###### | | ?????????????????????????????????????????????????? | | ?????????????????????????????????????????????????? | | ?????????????????????????????????????????????????? | | ?????????????????????????????????????????????????? | | ?????????????????????????????????????????????????? | | ?????????????????????????????????????????????????? | | ?????????????????????????????????????????????????? | | ?????????????????????????????????????????????????? | | ?????????????????????????????????????????????????? | | ?????????????????????????????????????????????????? | +----------------------------------------------------+ Best States ------------- Heat Dissipation 201 Energy Generation 59 Energy Capacity 2150 Matter Stores 300 Matter Capacity 300 Sight Range 16 Robot Scan Range 20 Terrain Scan Density 10 Base Temperature (-) 200 EM Shielding 4 Armor Coverage 825 Resistance: TH 30 Weapon Shielding 66 Weapon Cycling 30 Evasion (%) 67 Targeting Accuracy 8 Particle Charging 25 Force Boost 40 Item Schematics ----------------- None Robot Schematics ------------------ None Fabricated ------------ Nothing Alien Tech Used ----------------- None Achievements -------------- None Challenges ------------ None Game ------ Seed BeamAdvancedScreen Manual? 0 Play Time 03:58:12 Cumulative 154.7 hours Start 2024.12.19 @ 17:00:07 End 2024.12.19 @ 21:33:24 Sessions 1 Manual Loads 0 Difficulty Rogue Special Mode None Game No. 77 Rogue 77 Adventurer 0 Explorer 0 Win Type - Total 3 Types 3/0/0/0/0/0/0/0/0 Lore% 56 Gallery% 70 Achievement% 60 Wizard Run 0 Options --------- Layout 1 ASCII 0 Keyboard 0 Movement Mouse Keybinds 0 Fullscreen 1 Font 24/Smallcaps Map View 50x35 Zoom Use 0% Tactical HUD 1 Map Filters NONE Filters NONE Steam 1 RUN: a007f9a2-89e7-4118-896f-2bb6c31187f6